Cogmind - Beta 12 X4 @@@ ROGUE MODE // 2022.12.17 @ 20:14:29 Player: Runia Result: Destroyed by D-53 Grenadier with Mini Grenade Launcher Performance ------------- Evolutions (0) 0 Regions Visited (4) 800 Robots Destroyed (29) 145 Value Destroyed (558) 558 Prototype IDs (26) 520 Alien Tech Used (0) 0 Bonus (0) 0 TOTAL SCORE: 2023 Bonus ------- None Cogmind --------- Core Integrity 0/250 Matter 283/300 Energy 265/265 System Corruption 1% Temperature Cool (0) Movement Treading (240) Ox1 Location -9/Mines Parts ------- > --- POWER (1) -------- Improved Ion Engine > --- PROPULSION (2) --- Light Treads > --- UTILITY (2) ------ Large Storage Unit > --- WEAPON (2) ------- Heavy Assault Rifle Heavy Assault Rifle > --- INVENTORY (15) --- Light Treads Experimental Sensor Array Light Armor Plating Hardened Light Armor Plating Hardened Light Armor Plating Medium Laser Assault Rifle Assault Rifle AWS/Autocannon Grenade Launcher Datajack Katana Peak State ------------ > --- POWER ------------ Improved Ion Engine > --- PROPULSION ------- Light Treads Light Treads > --- UTILITY ---------- Large Storage Unit Hardened Light Armor Plating > --- WEAPON ----------- Heavy Assault Rifle Heavy Assault Rifle > --- INVENTORY -------- Light Treads Light Treads Experimental Sensor Array Light Armor Plating Hardened Light Armor Plating Hardened Light Armor Plating Medium Laser Assault Rifle Assault Rifle AWS/Autocannon Grenade Launcher Grenade Launcher Datajack [Rating: 16] Favorites ----------- Power Improved Ion Engine Engine Improved Ion Engine Propulsion Light Treads Treads Light Treads Leg Aluminum Leg Utility Large Storage Unit Device Structural Scanner Storage Large Storage Unit Protection Hardened Light Armor Plating Weapon Heavy Assault Rifle Ballistic Gun Heavy Assault Rifle Launcher Grenade Launcher Special Weapon Mining Laser Build | -11 -10 -10 -10 -9 ------- Run | Scr Mat Min Exi Min Slots Evolved . | . . . . . Power . | . . . . . Propulsion . | . . . . . Utility . | . . . . . Weapon . | . . . . . Parts Attached 26 | 2 10 7 1 6 Power 3 | . 2 1 . . Engine 3 | . 2 1 . . Core . | . . . . . Reactor . | . . . . . Propulsion 6 | 2 . 2 . 2 Treads 6 | 2 . 2 . 2 Leg . | . . . . . Wheel . | . . . . . Hover . | . . . . . Flight . | . . . . . Utility 5 | . 4 . 1 . Device 1 | . 1 . . . Storage 1 | . 1 . . . Processor . | . . . . . Hackware . | . . . . . Protection 3 | . 2 . 1 . Artifact . | . . . . . Weapon 12 | . 4 4 . 4 Energy Gun . | . . . . . Energy Cannon . | . . . . . Ballistic Gun 8 | . 3 3 . 2 Ballistic Cannon . | . . . . . Launcher 3 | . . 1 . 2 Special Weapon 1 | . 1 . . . Impact Weapon . | . . . . . Slashing Weapon . | . . . . . Piercing Weapon . | . . . . . Special Melee Weapon . | . . . . . Unidentified Prototypes . | . . . . . Parts Lost 3 | . . . . 3 Power . | . . . . . Propulsion 1 | . . . . 1 Utility 1 | . . . . 1 Weapon 1 | . . . . 1 Highest Loss Streak 2 | . . . . 2 To Critical Strikes . | . . . . . Average Slot Usage (%) 97 | . 90 100 100 99 Engine 14 | . 14 14 14 14 Treads 27 | . 28 28 28 27 Storage 14 | . 14 14 14 14 Protection 11 | . 4 14 14 14 Ballistic Gun 27 | . 27 27 28 27 Naked Turns . | . . . . . Heaviest Build 38 | 11 34 38 38 38 Greatest Support 40 | 40 40 40 40 40 Greatest Overweight (x) 1 | . . . . 1 Average Overweight (x) . | . . . . . Largest Inventory Capacity 15 | 8 15 15 15 15 Average Capacity 14 | 8 14 15 15 15 Most Carried 15 | 6 15 15 15 15 Average Carried 13 | 4 9 14 14 14 Final Capacity 15 | 8 15 15 15 15 Final Carried 15 | 2 15 15 15 14 Class Distribution -------------------- 69% | Scavenger-Mutant 30% | Mutant Dominant Class ---------------- Mutant | -10/Materials Scavenger-Mutant | -10/Mines Scavenger-Mutant | -10/Exiles Scavenger-Mutant | -9/Mines Resources | -11 -10 -10 -10 -9 ----------- Run | Scr Mat Min Exi Min Matter Collected 868 | 200 227 324 10 107 Remotely . | . . . . . Salvage Created 824 | . 413 290 . 121 Parts 61 | . 29 23 . 9 Haulers Intercepted 1 | . 1 . . . Recyclers Shooed 1 | . 1 . . . Parts Field Recycled . | . . . . . Retrieved Matter . | . . . . . Parts Self-Destructed . | . . . . . Prevented . | . . . . . Kills | -11 -10 -10 -10 -9 ------- Run | Scr Mat Min Exi Min Combat Hostiles Destroyed 24 | . 8 10 . 6 Guns 16 | . 8 7 . 1 AOE 8 | . . 3 . 5 Classes Destroyed 8 | . 5 2 . 1 Worker 1 | . . 1 . . Hauler 1 | . 1 . . . Recycler 2 | . 2 . . . Watcher 1 | . 1 . . . Swarmer 15 | . 6 6 . 3 Grunt 6 | . 2 2 . 2 Duelist 1 | . . . . 1 Sentry 2 | . . 2 . . Best Kill Streak 3 | . 3 3 . 3 Combat Bots Only 3 | . 3 3 . 3 Max Kills in Single Turn 3 | . 1 3 . 2 Gunslinging . | . . . . . Exploded 3 | . . 3 . 2 Melee . | . . . . . Uniques/NPCs Destroyed . | . . . . . Combat | -11 -10 -10 -10 -9 -------- Run | Scr Mat Min Exi Min Damage Taken 1346 | . 161 490 . 695 Core 257 | . 40 78 . 139 Absorbed by Shields . | . . . . . Core Remaining (%) 100 | 100 . . . . Volleys Fired 76 | . 42 26 . 8 Largest 2 | . 2 2 . 2 Hottest 100 | . 100 46 . 46 Shots Fired 146 | . 83 51 . 12 Gun 140 | . 82 50 . 8 Cannon . | . . . . . Launcher 5 | . . 1 . 4 Special 1 | . 1 . . . Kinetic 140 | . 82 50 . 8 Thermal 1 | . 1 . . . Explosive 5 | . . 1 . 4 Electromagnetic . | . . . . . Robot Hit Streak 12 | . 6 12 . 4 Robot Miss Streak 4 | . 4 4 . 2 Penetration Max . | . . . . . Secondary Targets 1 | . . 1 . . Max Gunslinging Chain 1 | . . 1 . . Shots Hit Robots 92 | . 53 33 . 6 Core Hits 46 | . 21 15 . 10 Critical Kills 1 | . 1 . . . Critical Parts Destroyed . | . . . . . Critical Strikes 1 | . 1 . . . Destroy 1 | . 1 . . . Melee Attacks . | . . . . . Impact . | . . . . . Slashing . | . . . . . Piercing . | . . . . . Sneak Attacks . | . . . . . Combat Hostiles . | . . . . . Follow-up Attacks . | . . . . . Damage Inflicted 1468 | . 562 573 . 333 Guns 1089 | . 562 463 . 64 Cannons . | . . . . . Explosions 379 | . . 110 . 269 Melee . | . . . . . Ramming . | . . . . . Kinetic 1089 | . 562 463 . 64 Thermal . | . . . . . Explosive 379 | . . 110 . 269 Electromagnetic . | . . . . . Impact . | . . . . . Slashing . | . . . . . Piercing . | . . . . . Highest Corruption 1 | . 1 1 1 1 Average Corruption 1 | . 1 1 1 1 Corruption Purged . | . . . . . Corruption Blocked . | . . . . . Effects 20 | . 3 8 4 5 Message Errors 6 | . 1 1 3 1 Matter Fused 6 | . 1 3 . 2 Heat Flow Errors 4 | . 1 2 . 1 Energy Discharges 3 | . . 1 1 1 Data Loss (major) 1 | . . 1 . . Overload Shots . | . . . . . Overflow Damage . | . . . . . Projectiles . | . . . . . Explosions . | . . . . . Melee . | . . . . . Knockbacks . | . . . . . Impact . | . . . . . Kinetic . | . . . . . Secondary . | . . . . . Self-Inflicted Damage 79 | . . . . 79 Shots 2 | . . . . 2 Rammed . | . . . . . Targets Rammed . | . . . . . Kicked . | . . . . . Crushed . | . . . . . Highest Temperature 195 | . 145 170 . 195 Average Temperature 40 | . 35 38 . 51 Received Heat Transfer 216 | . 42 162 . 12 Siege Activations . | . . . . . Robots Corrupted . | . . . . . Combat Hostiles . | . . . . . Parts Fried . | . . . . . Impact Corruptions . | . . . . . Robots Melted . | . . . . . Combat Hostiles . | . . . . . Parts Melted . | . . . . . Heat Transferred . | . . . . . Parts Sabotaged . | . . . . . Parts Stolen . | . . . . . Parts Stripped . | . . . . . Power Chain Reactions . | . . . . . Missiles Intercepted . | . . . . . Alert | -11 -10 -10 -10 -9 ------- Run | Scr Mat Min Exi Min Peak Influence 214 | . 213 172 . 214 Initial 14 | . . 14 . . Average 83 | . 70 61 . 190 Maximum Alert Level 1 | . 1 . . 1 Low Security (%) 86 | 100 96 100 . 20 Level 1 13 | . 3 . . 79 Level 2 . | . . . . . Level 3 . | . . . . . Level 4 . | . . . . . Level 5 . | . . . . . High Security . | . . . . . Max Security . | . . . . . Squads Dispatched . | . . . . . Investigation . | . . . . . Extermination . | . . . . . Reinforcement . | . . . . . Assault . | . . . . . Garrison . | . . . . . Intercept . | . . . . . Searches Triggered . | . . . . . Construction Impeded . | . . . . . Haulers Reinforced . | . . . . . Active Scanning Responses . | . . . . . Cargo Convoy Interrupts . | . . . . . Stealth | -11 -10 -10 -10 -9 --------- Run | Scr Mat Min Exi Min Distress Signals . | . . . . . Communications Jammed . | . . . . . Distress Signals . | . . . . . Times Spotted 43 | . 14 9 . 20 Peak Tracking Total 8 | . 4 3 . 8 Tactical Retreats . | . . . . . Traps | -11 -10 -10 -10 -9 ------- Run | Scr Mat Min Exi Min Traps Triggered 1 | . 1 . . . Indirectly . | . . . . . Trap Hack Attempts . | . . . . . Triggered . | . . . . . Disarmed . | . . . . . Reprogrammed . | . . . . . Reused . | . . . . . Traps Extracted . | . . . . . Installed . | . . . . . Triggered . | . . . . . Machines | -11 -10 -10 -10 -9 ---------- Run | Scr Mat Min Exi Min Machines Disabled 1 | . . 1 . . Max in Single Turn 1 | . . 1 . . Machines Sabotaged . | . . . . . Overloaded Fab Kills . | . . . . . Hacking | -11 -10 -10 -10 -9 --------- Run | Scr Mat Min Exi Min Machines Accessed 9 | . 7 . 2 . Terminals 7 | . 7 . . . Fabricators . | . . . . . Repair Stations . | . . . . . Recycling Units . | . . . . . Scanalyzers . | . . . . . Garrison Access . | . . . . . Total Hacks 21 | . 19 . 2 . Successful 11 | . 9 . 2 . Failed 10 | . 10 . . . Catastrophic 1 | . 1 . . . Database Lockouts . | . . . . . Manual 12 | . 9 . 3 . Terminals 19 | . 19 . . . Fabricators . | . . . . . Repair Stations . | . . . . . Recycling Units . | . . . . . Scanalyzers . | . . . . . Garrison Access . | . . . . . Terminal Hacks 11 | . 9 . 2 . Record 1 | . . . 1 . Part Schematic 1 | . 1 . . . Robot Schematic 1 | . 1 . . . Robot Analysis 1 | . 1 . . . Prototype ID Bank 3 | . 3 . . . Locate Traps 2 | . 2 . . . Zone Layout 1 | . 1 . . . EX-Prototype ID Bank 1 | . . . 1 . Fabricator Hacks . | . . . . . Repair Station Hacks . | . . . . . Recycling Unit Hacks . | . . . . . Scanalyzer . | . . . . . Garrison Access Hacks . | . . . . . Unauthorized Hacks . | . . . . . Terminals . | . . . . . Fabricators . | . . . . . Repair Stations . | . . . . . Recycling Units . | . . . . . Scanalyzers . | . . . . . Garrison Access . | . . . . . Data Cores Recovered . | . . . . . Used . | . . . . . Hacking Detections 7 | . 7 . . . Full Trace Events . | . . . . . Feedback Events . | . . . . . Feedback Blocked . | . . . . . Robot Schematics Acquired 1 | . 1 . . . Robots Built . | . . . . . Authchips . | . . . . . Time . | . . . . . Total Robot Build Rating . | . . . . . Part Schematics Acquired 1 | . 1 . . . Parts Built . | . . . . . Authchips . | . . . . . Time . | . . . . . Total Part Build Rating . | . . . . . Parts Repaired . | . . . . . Time . | . . . . . Parts Recycled . | . . . . . Recycled Matter . | . . . . . Retrieved Matter . | . . . . . Retrieved Components . | . . . . . Parts Scanalyzed . | . . . . . Part Schematics Acquired . | . . . . . Parts Damaged . | . . . . . Bothacking | -11 -10 -10 -10 -9 ------------ Run | Scr Mat Min Exi Min Used RIF Installer . | . . . . . Robots Hacked . | . . . . . Non-combat . | . . . . . Combat . | . . . . . Robot Hacks Applied . | . . . . . Relay Couplers Released . | . . . . . Fabnet Peak Effective % . | . . . . . Robots Rewired . | . . . . . Allies Hacked . | . . . . . Hacks Repelled . | . . . . . Allies | -11 -10 -10 -10 -9 -------- Run | Scr Mat Min Exi Min Total Allies 3 | . . . . 3 Largest Group 3 | . . . . 3 Highest-Rated Group 40 | . . . . 40 Highest-Rated Ally 16 | . . . . 16 Total Orders . | . . . . . Ally Attacks 2 | . . . . 2 Total Damage 18 | . . . . 18 Kills . | . . . . . Allies Corrupted . | . . . . . Allies Melted . | . . . . . Intel | -11 -10 -10 -10 -9 ------- Run | Scr Mat Min Exi Min Robot Analysis Total 1 | . 1 . . . Derelict Logs Recovered 2 | . . 1 . 1 Drone Launches . | . . . . . Drone Recoveries . | . . . . . Exploration | -11 -10 -10 -10 -9 ------------- Run | Scr Mat Min Exi Min Turns Passed 3577 | 5 1006 1205 972 389 Spaces Moved 2037 | 1 514 694 606 222 Core . | . . . . . Treads 2037 | 1 514 694 606 222 Legs . | . . . . . Wheels . | . . . . . Hover . | . . . . . Flight . | . . . . . Fastest Speed 160 | 160 160 160 160 160 Average Speed 160 | 160 160 160 160 161 Slowest Speed 240 | 160 160 160 160 240 Overloaded Moves . | . . . . . Propulsion Burnouts . | . . . . . Robots Hopped . | . . . . . Cave-ins Triggered . | . . . . . Exploration Rate (%) 67 | 2 90 99 88 60 Regions Visited 4 Branch Regions 3 Pre-discovered Areas 1 | . . . 1 . Known Exits Taken . | . . . . . Unknown Exits Taken 4 | 1 1 1 1 . Scrap Searched 2 | . . 1 . 1 Spaces Dug 10 | . 1 . . 9 Terrain Destroyed 39 | . 1 6 . 32 Melee . | . . . . . Projectile 1 | . 1 . . . AOE 38 | . . 6 . 32 Terrain Rammed . | . . . . . Walls Destroyed . | . . . . . Machines Disabled . | . . . . . Actions | -11 -10 -10 -10 -9 --------- Run | Scr Mat Min Exi Min Total 2221 | 6 625 742 610 238 Wait 37 | . 32 5 . . Move 2033 | . 513 693 605 222 Hop . | . . . . . Pick Up 23 | . 18 3 1 1 Fast Attach 4 | . 3 . . 1 Attach 4 | 2 1 . . 1 Detach . | . . . . . Swap 18 | . 6 7 1 4 Drop 26 | 4 10 8 3 1 Fire 76 | . 42 26 . 8 Melee . | . . . . . Ram . | . . . . . Kick . | . . . . . Crush . | . . . . . Escape Stasis . | . . . . . Rewire . | . . . . . Trap . | . . . . . Miscellaneous . | . . . . . Route ------- -11/Scrapyard -10/Materials (discovered 5 exits: [*Mat x3] / [*Min x2]) -10/Mines (discovered 3 exits: [*Mat x2] / *Exi) -10/Exiles -9/Mines (discovered 1 exit: Mat) History --------- Turn | Location | Event 6 | -11/Scrapyard | Discovered new exit (range 0) 6 | -11/Scrapyard | Entered Materials 41 | -10/Materials | Discovered new exit (range 16) 65 | -10/Materials | Discovered new exit (range 15) 273 | -10/Materials | Discovered new exit (range 3) 302 | -10/Materials | Build established: Mutant 708 | -10/Materials | Discovered new exit (range 9) 823 | -10/Materials | Discovered new exit (range 3) 1012 | -10/Materials | Entered Mines 1043 | -10/Mines | Discovered new exit (range 13) 1048 | -10/Mines | Met a Derelict bent on vengeance 1145 | -10/Mines | Learned Materials stockpile data 1385 | -10/Mines | Found a damaged Exp. Sensor Array with a note attached 1389 | -10/Mines | Found Prototype Device 1409 | -10/Mines | Build established: Scavenger-Mutant 1711 | -10/Mines | Deemed a non-threat by the Exiles lab entrance 1885 | -10/Mines | Discovered new exit (range 7) 2211 | -10/Mines | Discovered new exit (range 5) 2217 | -10/Mines | Entered Exiles 2217 | -10/Exiles | Found Exiles lab destroyed 2377 | -10/Exiles | Opened EX-Vault 2483 | -10/Exiles | Learned location of Zion (-6) 2958 | -10/Exiles | Found AWS/Autocannon 3172 | -10/Exiles | Discovered new exit (range 11) 3189 | -10/Exiles | Entered Mines 3191 | -9/Mines | Core integrity fell below 50% 3395 | -9/Mines | Assisted by bots powering up and referring to "LRC-V3" 3521 | -9/Mines | Identified exit to Materials 3551 | -9/Mines | Assembled infested the area 3573 | -9/Mines | Core integrity fell below 20% 3578 | -9/Mines | Destroyed by D-53 Grenadier with Mini Grenade Launcher Last Messages --------------- 03566_ Lgt. Treads destroyed. 03566_ Trooper 2a destroyed. 03568_ Trooper 2b destroyed. 03570_ as-80177 destroyed. 03570_ T-07 Excavator destroyed. 03570_ as-80096 destroyed. 03572_ The unstable cave ceiling collapses. 03572_ as-00254 destroyed. 03572_ as-44657 destroyed. 03572_ Hrd. Light Armor Plating destroyed. 03573_ The unstable cave ceiling collapses. 03574_ as-56744 destroyed. 03574_ as-46200 destroyed. 03574_ as-86800 destroyed. 03576_ The unstable cave ceiling collapses. 03576_ as-54399 destroyed. 03576_ as-69458 destroyed. 03576_ as-23031 destroyed. 03576_ as-00876 destroyed. 03577_ The unstable cave ceiling collapses. Map ----- +----------------------------------------------------+ | ?????????????????????????????????????? | | ?????????????????????????????????????? | | ?????????????????????????????????????? | | ?????????????????????????????????????? | | ?????????????????????????????????????? | | ?????????????????????????????????????? | | ?????????????????????????????????????? | | ?????????????????????????????????????? | | ?????????????????????????????????????? | | ?????????????????????????????????????? | | ?????????????????????????????????????? | | ?????????????????????????????????????? | | ?????????????????????????????????????? | | ?????????????????????????????????????? | | ?????????????????###?????????????????? | | ????????????????? #??#??????????????? | | ????????????????? #? #??????????????? | | ???????????????## ## #??????????????? | | ??????????????# #??????????????? | | ?????????????? #% #??????????????? | | ???????????##? % # #??? ?????????? | | ?????????### # % #??# #????????? | | ?????????# #??# #????????? | | ?????????# #### ##???????# | | ???????### ????????# | | ???????# @ d # #??# #????????# | | ???????# d #?## #????????# | | ?????# # ### ##???????# | | ?????# ### ## #???????# | | ?????????## #???????# | | ??????????## ##???????# | | ??????????## #????????# | | ??????????# ##??????## | | ?????????# ## ######## | | ????